[Event "Rapid Shavuot-A 2023"]
[Site "Ramat Gan"]
[Date "2023.05.25"]
[Round "4.10"]
[White "Katz, Kiril"]
[Black "Ehrlich, Roy"]
[Result "0-1"]
[ECO "C07"]
[WhiteElo "2016"]
[BlackElo "2228"]
[Annotator "TA"]
[PlyCount "146"]
[EventDate "2023.05.19"]
[EventType "swiss"]
[EventCountry "ISR"]
[SourceTitle "playchess.com"]
[Source "ChessBase"]
[SourceQuality "1"]
[TimeControl "900+5"]

{[%evp 10,146,-14,-7,0,0,-11,-32,-12,-16,-9,-26,-20,-10,-23,-22,0,-16,-17,-97,-95,-93,-80,-113,-113,-109,-120,-127,-129,-121,-124,-139,-129,-141,-140,-131,-124,-122,-125,-131,-108,-131,-119,-153,-97,-173,-173,-173,-173,-173,-173,-173,-173,-173,-173,-215,-215,-215,-186,-215,-215,-651,-643,-590,-535,-697,-656,-700,-670,-686,-580,-671,-495,-656,-565,-856,-655,-872,-870,-834,-835,-830,-802,-744,-656,-985,-907,-4578,-4538,-1579,-1600,-933,-95,-95,-95,-194,-177,-686,-653,-580,-329,-1710,-157,-2001,-1777,-29967,-29968,-29965,-29966,-29955,-12746,-29956,-5309,-29959,-9144,-29978,-29979,-29982,0,0,0,0,0,0,0,0,0,0,0,-97,-133,-172,-172,-29988,-29989,-29995,-29996,-29996,-29996]} 1. e4 {[%emt 0:00:02]} e6 {[%emt 0:00:01]} 2. d4 {[%emt 0:00:01]} d5 {[%emt 0:00:01]} 3. Nd2 {[%emt 0:00:01]} c5 {[%emt 0:00:01]} 4. c3 {[%emt 0:00:02]} cxd4 {[%emt 0:00:03]} 5. cxd4 {[%emt 0:00:01]} dxe4 {[%emt 0:00:03]} 6. Nxe4 {[%emt 0:00:04]} Nf6 {[%emt 0:00:03] C07: French Tarrasch: 3...c5, 4 Ngf3 and 4 exd5 Qxd5.} 7. Nxf6+ {[%emt 0:00:27]} Qxf6 {[%emt 0:00:02]} 8. Bb5+ {[%emt 0:00:01]} Nc6 {[%emt 0:00:08] Black is slightly better.} 9. Nf3 {[%emt 0:00:14]} Bb4+ {[%emt 0:03:06]} 10. Bd2 {[%emt 0:00:01]} Bxd2+ 11. Qxd2 {[%emt 0:00:01]} Bd7 {[%emt 0:00:41]} 12. O-O {[%emt 0:00:04]} Rd8 {[%emt 0:00:31][%cal Oc6d4,Ba8d8,Bd8d7,Bd7d5,Bd5e5][%mdl 32] [#]} 13. Qe3 $146 {[%emt 0:00:19]} (13. d5 $5 {[%cal Rd5c6]} Ne5 14. Bxd7+ Rxd7 15. Nxe5 Qxe5 16. Qb4 $11) ({Predecessor:} 13. Rad1 O-O 14. Qe3 Nb4 15. Bc4 Bc6 16. Ne5 Bd5 17. Qb3 Bxc4 18. Qxc4 Nd5 19. Qa4 {½-½ Eisele,S (2195)-Rempeli,A (2058) Oberliga Wuerttemberg 1920 2019 (2.8)}) 13... a6 {[%emt 0:00:39]} 14. Ba4 {[%emt 0:00:03] [#]} (14. Bd3 $11 {remains equal.}) 14... Nxd4 $1 $17 {[%emt 0:01:07][%mdl 64] Discovered Attack} 15. Bxd7+ {[%emt 0:02:19]} Rxd7 {[%emt 0:00:01]} 16. Ne5 {[%emt 0:00:52]} Rd5 {[%emt 0:00:01]} 17. Rad1 {[%emt 0:00:00]} Qxe5 ({Resist} 17... Nf5 18. Qa7 Rxd1 19. Rxd1 $14) 18. Qxe5 {[%emt 0:00:01]} Nf3+ 19. gxf3 {[%emt 0:00:01]} Rxe5 {[%emt 0:03:00][%mdl 4096] Endgame KRR-KRR} 20. Rd6 {[%emt 0:00:21]} Rg5+ {[%emt 0:00:38]} 21. Kh1 {[%emt 0:00:02]} Ke7 {[%emt 0:01:33]} 22. Rfd1 {[%emt 0:00:01]} Rb5 {[%emt 0:00:36]} 23. Rd7+ {[%emt 0:01:03]} Kf6 {[%emt 0:00:01]} 24. R1d4 {[%emt 0:00:01]} g5 {[%emt 0:00:36] Dodges Rf4+} ({Worse is} 24... Rxb2 25. Rf4+ Kg6 26. Rg4+ Kh6 27. Rh4+ Kg6 28. Rg4+ Kh6 29. Rh4+ Kg6 30. Rg4+ $17) 25. b4 {[%emt 0:00:37]} Rc8 {[%emt 0:01:06]} 26. a4 {[%emt 0:00:08]} Rb6 {[%emt 0:00:01]} ({Better is} 26... Re5 {...Re2 would be deadly.} 27. h4 h6) 27. b5 {[%emt 0:00:47]} axb5 $19 {[%emt 0:00:26] Hoping for ...b4.} 28. a5 {[%emt 0:00:00]} Ra6 {[%emt 0:00:06]} 29. Rxb7 {[%emt 0:00:02]} Rxa5 {[%emt 0:00:15]} 30. Rdd7 {[%emt 0:00:01]} Rf8 {[%emt 0:00:03]} 31. Kg2 {[%emt 0:00:01]} h5 {[%emt 0:00:33]} 32. h3 {[%emt 0:00:01]} Kg6 {[%emt 0:00:08]} 33. Re7 {[%emt 0:00:23]} h4 {[%emt 0:00:09]} 34. Kg1 {[%emt 0:00:20]} Ra3 {[%emt 0:00:03]} 35. Rxb5 $2 {[%emt 0:00:09]} (35. Kg2) 35... Rxf3 {[%emt 0:00:01]} 36. Kg2 {[%emt 0:00:00]} Rf4 {[%emt 0:00:09]} 37. Rc7 {[%emt 0:01:15]} Rd8 {[%emt 0:00:04] Threatens to win with ...Rd2.} 38. Rcc5 {[%emt 0:00:08]} f6 {[%emt 0:00:06]} 39. Rc2 {[%emt 0:00:15] Dodges Rd2} Rd5 {[%emt 0:00:39]} 40. Rb8 {[%emt 0:00:14]} Kf5 {[%emt 0:00:03]} 41. Rh8 {[%emt 0:00:15]} Rd3 {[%emt 0:00:15]} 42. Rh6 {[%emt 0:00:16]} Rfd4 {[%emt 0:00:08]} 43. Rc5+ {[%emt 0:00:16]} Rd5 {[%emt 0:00:02]} 44. Rc8 {[%emt 0:00:01]} Rd6 {[%emt 0:00:12]} 45. Rf8 {[%emt 0:00:35]} e5 {[%emt 0:00:01]} 46. Rf7 {[%emt 0:00:01]} R3d4 {[%emt 0:00:03] And now ...Rf4 would win.} 47. Rf8 {[%emt 0:00:05]} Rf4 {[%emt 0:00:01]} 48. Rf7 {[%emt 0:00:08]} Ke4 {[%emt 0:00:01]} 49. Ra7 {[%emt 0:00:30]} Rd2 {[%emt 0:00:52]} 50. Ra4+ {[%emt 0:00:01]} Rd4 $2 {[%emt 0:00:01]} (50... Kf5 $19 {has better winning chances.} 51. Rxf4+ gxf4 52. Rh5+ Ke4) 51. Ra6 $17 {[%emt 0:00:01]} f5 $1 {[%emt 0:00:19]} (51... Rd2 52. Ra4+ Kf5 53. Rxf4+ gxf4 54. Rh5+ Ke4 55. Rh6 $19) 52. Ra5 {[%emt 0:00:10] [#]} (52. Rh5 $17) 52... Rd5 $1 $19 {[%emt 0:00:26]} 53. Ra3 {[%emt 0:00:18]} (53. Ra4+ Rd4 54. Ra2) 53... Rd2 {[%emt 0:00:04]} 54. Ra4+ {[%emt 0:00:09]} Kd3 {[%emt 0:00:02]} 55. Rxf4 {[%emt 0:00:33]} (55. Rd6+ Ke2 56. Rxd2+ Kxd2 57. Ra7) 55... exf4 $2 {[%emt 0:00:01] KR-KR} (55... gxf4 $19 56. Rf6 e4 57. Rxf5 e3) 56. Kf3 {[%emt 0:00:15] [#]} (56. Rf6 $17) 56... Kc2 $1 {[%emt 0:00:14]} 57. Rf6 {[%emt 0:01:06]} Rd3+ {[%emt 0:00:01]} 58. Kg2 {[%emt 0:00:01]} f3+ {[%emt 0:00:04]} 59. Kh2 {[%emt 0:00:11]} Rd5 {[%emt 0:00:07] ( -> ...Kd1)} 60. Re6 {[%emt 0:00:21]} Kd1 {[%emt 0:00:03]} (60... Rd2 $142 61. Kg1 Rd1+ 62. Kh2 g4 63. Rc6+ Kd3 64. hxg4 fxg4 65. Rf6 Ke2 66. Rf4 Kxf2 67. Rxg4 Ke3 68. Rg7 f2 69. Re7+ Kd2 70. Rd7+ Kc2 71. Rc7+ Kb3 72. Rb7+ Kc4 73. Rc7+ Kb5 74. Rb7+ Kc6 75. Rg7 f1=Q 76. Rc7+ Kd5 77. Rd7+ Ke4 78. Re7+ Kf3 79. Rf7+ Ke2 80. Re7+ Kf2 81. Rf7+ Ke1 82. Re7+ Qe2+ 83. Kh3 Qxe7 84. Kg4 Kd2 85. Kf3 Rg1 86. Kf4 Qe6 87. Kf3 Qf5#) 61. Re3 {[%emt 0:00:02]} f4 {[%emt 0:00:04]} 62. Rxf3 {[%emt 0:00:23]} Ke2 {[%emt 0:00:01]} 63. Kg2 {[%emt 0:00:01]} Rf5 $2 {[%emt 0:00:14]} (63... Rd3 {mates} 64. Rxd3 Kxd3 65. Kf3 Kd2 66. Kg4 Ke2 67. f3 Kf2 68. Kxg5 Kxf3 69. Kxh4 Ke3 70. Kh5 f3 71. Kg6 f2 72. Kf5 f1=Q+ 73. Ke6 Kd4 74. h4 Qf3 75. h5 Qxh5 76. Ke7 Kd5 77. Kf6 Kd6 78. Kg7 Ke7 79. Kg8 Kf6 80. Kf8 Qh8#) 64. Ra3 $11 {[%emt 0:00:09]} f3+ {[%emt 0:00:01]} 65. Kg1 {[%emt 0:00:01]} Re5 {[%emt 0:00:17]} 66. Rb3 {[%emt 0:00:18]} Re4 {[%emt 0:00:02] Strongly threatening ...g4.} 67. Rb2+ {[%emt 0:00:01]} Ke1 {[%emt 0:00:09]} 68. Rb1+ {[%emt 0:00:08]} Kd2 {[%emt 0:00:01]} 69. Rb3 {[%emt 0:00:11]} (69. Rb2+ $11 Kc3 70. Ra2) 69... g4 $17 {[%emt 0:00:05]} 70. hxg4 {[%emt 0:00:00]} Rxg4+ {[%emt 0:00:00]} 71. Kf1 $2 {[%emt 0:00:01]} (71. Kh2 $19) 71... h3 {[%emt 0:00:08][%cal Bh4h3,Bh3h2][%mdl 32] Black mates.} 72. Rb1 {[%emt 0:01:03]} h2 {[%emt 0:00:03][%cal Rh2h1]} 73. Rd1+ {[%emt 0:00:01]} Kc3 {[%emt 0:00:01] Weighted Error Value: White=0.38/Black=0.14 (very precise)} 0-1

[Event "Rapid Shavuot-A 2023"]
[Site "Ramat Gan"]
[Date "2023.05.25"]
[Round "4.11"]
[White "Adar, Idan"]
[Black "Parkhov, Yair"]
[Result "0-1"]
[ECO "C46"]
[WhiteElo "2085"]
[BlackElo "2505"]
[Annotator "TA"]
[PlyCount "56"]
[EventDate "2023.05.19"]
[EventType "swiss"]
[EventCountry "ISR"]
[SourceTitle "playchess.com"]
[Source "ChessBase"]
[SourceQuality "1"]
[TimeControl "900+5"]

{[%evp 16,56,69,89,64,65,63,50,70,-6,-6,-20,-21,-40,6,-110,-111,-97,-97,-99,-104,-100,-102,-95,-85,-108,-65,-103,-75,-89,-74,-80,-88,-103,-59,-198,-177,-526,-522,-29985,-483,-29983,-404]} 1. d4 {[%emt 0:00:05]} g6 {[%emt 0:00:05]} 2. e4 {[%emt 0:00:05]} Bg7 {[%emt 0:00:05]} 3. Be3 {[%emt 0:00:05]} d6 {[%emt 0:00:05]} 4. Qd2 {[%emt 0:00:05]} Nf6 {[%emt 0:00:06]} 5. f3 {[%emt 0:00:05]} O-O {[%emt 0:00:29]} 6. Nc3 {[%emt 0:00:05]} e5 {[%emt 0:00:33]} 7. Nge2 {[%emt 0:00:10]} Nc6 {[%emt 0:00:05]} 8. O-O-O {[%emt 0:00:06]} exd4 {[%emt 0:00:20]} 9. Nxd4 {[%emt 0:00:05]} d5 {[%emt 0:00:05] C46: 3 Nc3: Unusual Black 3rd moves.} 10. Nxc6 {[%emt 0:01:22]} bxc6 {[%emt 0:00:05]} 11. h4 {[%emt 0:00:30] [#]} (11. Bc4 $5 {[%cal Re4d5]}) 11... Be6 $146 {[%emt 0:00:24] White is slightly better.} ({Predecessor:} 11... h5 12. Bh6 Be6 13. e5 Ne8 14. Bd3 Bxe5 15. g4 hxg4 16. Bxf8 Kxf8 17. h5 Qd6 {0-1 Turkova,K (1701)-Schnegg,M (2061) EU Union-ch U14 2008 (1)}) 12. e5 {[%emt 0:03:01]} (12. exd5 $14 cxd5 13. Bd4) 12... Nd7 $11 {[%emt 0:00:51]} 13. f4 {[%emt 0:00:05]} f6 {[%emt 0:00:42]} 14. exf6 {[%emt 0:01:46]} (14. h5 {feels hotter.} fxe5 15. fxe5 gxh5 16. Bh6) 14... Qxf6 {[%emt 0:00:05]} (14... Nxf6 $15 15. Bc5 Re8) 15. Bd4 {[%emt 0:03:17]} (15. g3 $1 $11 {remains equal.}) 15... Qxf4 $17 {[%emt 0:00:13]} 16. Bxg7 {[%emt 0:00:19]} Qxd2+ {[%emt 0:00:22]} (16... Kxg7 {with more complications.} 17. Be2 Rae8 18. h5 a5) 17. Rxd2 {[%emt 0:00:05]} Kxg7 {[%emt 0:00:05]} 18. Be2 {[%emt 0:01:00]} Rae8 {[%emt 0:00:19]} 19. h5 {[%emt 0:00:15]} Nf6 {[%emt 0:00:07]} 20. h6+ {[%emt 0:00:32]} Kg8 {[%emt 0:00:05]} 21. Bf3 {[%emt 0:00:05]} Bg4 {[%emt 0:00:13]} 22. Bxg4 {[%emt 0:00:13]} Nxg4 {[%emt 0:00:05]} 23. Rd4 {[%emt 0:00:05]} Ne3 {[%emt 0:00:18]} 24. Ra4 {[%emt 0:00:43]} Rf2 {[%emt 0:00:42] Black is more active.} 25. Rxa7 {[%emt 0:00:05]} ({White should try} 25. Re1 $1 $15) 25... d4 $36 {[%emt 0:00:09][%mdl 2048] Black is really pushing.} ({Weaker is} 25... Nxg2 26. Rxc7 Ne3 27. Nd1 Rxc2+ 28. Kb1 $14) 26. Na4 {[%emt 0:00:26]} (26. Nd1 {was the crucial defense.} Rxc2+ 27. Kb1) 26... Nf1 {[%emt 0:00:59][%cal Re8e1]} ({Worse is} 26... Nxg2 27. Rxc7 Ne3 28. Kb1 $11 (28. Rxc6 Nf1 $17)) 27. b3 {[%emt 0:00:41]} d3 {[%emt 0:00:05]} (27... Re1+ $142 28. Kb2 d3 29. Rxf1 Rexf1 30. Rxc7 dxc2 31. Rc8+ Kf7 32. Rc7+ Ke8 33. Rc8+ Ke7 34. Rc7+ Kd8 35. Rd7+ Kxd7 36. Kc3 c1=Q+ {[%mdl 64] Discovered Attack, Double Attack} 37. Kb4 Rxa2 38. Nc5+ Kc7 39. Ne6+ Kd6 40. g4 Qd2+ 41. Kc4 Rc2#) 28. Kb2 {[%emt 0:01:02] [#]} (28. Rxf1 $19 Rxf1+ 29. Kd2 dxc2 30. Kxc2) 28... dxc2 {[%emt 0:00:08] Black took control after the opening.   Weighted Error Value: White=0.94/Black=0.36} (28... Re1 $142 29. Ra8+ Kf7 30. Kc3 dxc2 31. Kb4 c1=Q 32. Ka5 Re5+ 33. Ka6 Qd2 34. Rh5 Qa5+ 35. Kb7 Qb4+ 36. Ka7 Rxh5 37. Rf8+ Kxf8 38. Nc5 Rxc5 39. Ka8 Rxa2#) 0-1

[Event "Rapid Shavuot-A 2023"]
[Site "Ramat Gan"]
[Date "2023.05.25"]
[Round "4.12"]
[White "Dvoirys, Semen I."]
[Black "Kereth, Oren"]
[Result "1-0"]
[ECO "C82"]
[WhiteElo "2470"]
[BlackElo "2080"]
[Annotator "TA"]
[PlyCount "33"]
[EventDate "2023.05.19"]
[EventType "swiss"]
[EventCountry "ISR"]
[SourceTitle "playchess.com"]
[Source "ChessBase"]
[SourceQuality "1"]
[TimeControl "900+5"]

{[%evp 22,33,32,31,24,16,79,79,190,188,540,541,645,636]} 1. e4 {[%emt 0:00:04]} e5 {[%emt 0:00:15]} 2. Nf3 {[%emt 0:00:02]} Nc6 {[%emt 0:00:05]} 3. Bb5 {[%emt 0:00:04]} a6 {[%emt 0:00:04]} 4. Ba4 {[%emt 0:00:01]} Nf6 {[%emt 0:00:05]} 5. O-O {[%emt 0:00:02]} Nxe4 {[%emt 0:00:04]} 6. d4 {[%emt 0:00:01]} b5 {[%emt 0:00:05]} 7. Bb3 {[%emt 0:00:01]} d5 {[%emt 0:00:05]} 8. dxe5 {[%emt 0:00:01]} Be6 {[%emt 0:00:07]} 9. c3 {[%emt 0:00:04]} Bc5 {[%emt 0:00:03]} 10. Qd3 {[%emt 0:00:02]} O-O {[%emt 0:03:59]} 11. Be3 {[%emt 0:00:02]} Bxe3 {[%emt 0:02:23]} 12. Qxe3 {[%emt 0:00:02]} Qe7 {[%emt 0:00:16] C82: Open Ruy Lopez: 9 c3 without 9...Be7.} 13. Nbd2 {[%emt 0:00:21]} Nc5 {[%emt 0:01:09]} (13... Qc5 $11) 14. Nd4 $16 {[%emt 0:00:50]} Na5 {[%emt 0:01:34]} (14... Nxd4 $16 15. cxd4 Na4) 15. Bc2 {[%emt 0:00:06] [#] Strongly threatening f4.} Nc4 $2 {[%emt 0:00:28] Dodges f4} (15... Na4 {is more resistant.}) 16. Nxc4 $18 {[%emt 0:00:02] [#]} bxc4 $146 {[%emt 0:00:21]} ({Predecessor:} 16... dxc4 17. Nc6 Qd7 18. Qxc5 Qd2 19. Nd4 {1-0 Kagan,B-Malthan,F DSB Kongress-13 Hauptturnier A 1902 (17)}) 17. Nc6 {[%emt 0:00:02][%mdl 64] Deflection. White took control after the opening.   Weighted Error Value: White=0.02 (flawless) /Black=1.25} 1-0

[Event "Rapid Shavuot-A 2023"]
[Site "Ramat Gan"]
[Date "2023.05.25"]
[Round "4.14"]
[White "Noy, Eyal"]
[Black "Zakin, Ilay"]
[Result "1-0"]
[ECO "A59"]
[WhiteElo "2141"]
[BlackElo "1724"]
[Annotator "TA"]
[PlyCount "89"]
[EventDate "2023.05.19"]
[EventType "swiss"]
[EventCountry "ISR"]
[SourceTitle "playchess.com"]
[Source "ChessBase"]
[SourceQuality "1"]
[TimeControl "900+5"]

{[%evp 24,87,67,56,86,15,18,18,12,13,13,13,16,15,29,31,31,27,20,15,53,48,45,39,45,41,47,39,53,39,39,31,40,0,0,0,18,5,5,0,0,0,0,0,55,26,58,54,89,90,89,102,80,25,25,25,29979,29980,29979,29980,29996,29997,29997,29998,29998,29999]} 1. d4 {[%emt 0:00:02]} Nf6 {[%emt 0:00:02]} 2. c4 {[%emt 0:00:01]} c5 {[%emt 0:00:01]} 3. d5 {[%emt 0:00:00]} b5 {[%emt 0:00:01]} 4. cxb5 {[%emt 0:00:01]} a6 {[%emt 0:00:01]} 5. Nc3 {[%emt 0:00:03]} axb5 {[%emt 0:00:04]} 6. Nxb5 {[%emt 0:00:01]} Ba6 {[%emt 0:00:02]} 7. Nc3 {[%emt 0:00:02]} g6 {[%emt 0:00:02]} 8. e4 {[%emt 0:00:11]} Bxf1 {[%emt 0:00:03]} 9. Kxf1 {[%emt 0:00:02]} d6 {[%emt 0:00:05]} 10. g3 {[%emt 0:00:01]} Bg7 {[%emt 0:00:01]} 11. Kg2 {[%emt 0:00:01]} O-O {[%emt 0:00:03]} 12. Nge2 {[%emt 0:00:10] 12.a4 is the modern continuation.} Nbd7 {[%emt 0:00:05]} 13. Qc2 {[%emt 0:00:08]} Qa5 {[%emt 0:00:10] A59: Benko/Volga Gambit: White castles by hand.} 14. b3 {[%emt 0:00:11]} ({Better is} 14. Rd1 $16) 14... Nxe4 $11 {[%emt 0:01:56][%mdl 64] [#] Deflection} 15. Qxe4 {[%emt 0:00:02][%cal Oc1b2] Strongly threatening Bb2!} Bxc3 {[%emt 0:00:02] The position is equal.} 16. Nxc3 {[%emt 0:00:21]} Qxc3 {[%emt 0:00:01]} 17. Bg5 {[%emt 0:00:10]} Rfe8 {[%emt 0:00:32] [#]} 18. Bxe7 $146 {[%emt 0:01:28]} ({Predecessor:} 18. Rhe1 Nf6 19. Bxf6 Qxf6 20. a4 Ra7 21. Rac1 Rb8 22. Re3 Qb2 23. Rcc3 Rb4 24. Qf3 Rd4 25. Re2 {½-½ Ziemann,J (1986)-Krawczyk,A (2161) Gdansk op 2008 (7)}) 18... Nf6 {[%emt 0:00:59]} 19. Bxf6 {[%emt 0:00:19]} Qxf6 {[%emt 0:00:01]} 20. Qc2 {[%emt 0:00:30]} Qe5 {[%emt 0:00:16]} 21. Rad1 {[%emt 0:00:21]} Qe2 {[%emt 0:00:33]} 22. Rd2 {[%emt 0:00:08]} Qe5 {[%emt 0:00:21]} 23. h4 {[%emt 0:00:28]} h5 {[%emt 0:00:20]} 24. Rhd1 {[%emt 0:00:44]} Rab8 {[%emt 0:00:39]} 25. Rd3 {[%emt 0:00:08][%cal Bd2d3,Bd3f3,Bf3f4][%mdl 32]} Qe4+ {[%emt 0:00:15]} 26. Kh2 {[%emt 0:00:06]} Qf5 {[%emt 0:01:27]} 27. Kg1 {[%emt 0:00:59]} Re5 {[%emt 0:00:07]} 28. R1d2 {[%emt 0:00:59]} (28. R3d2 {simplifies} Qxc2 29. Rxc2 Kg7 30. Kf1) 28... Rbe8 {[%emt 0:00:25]} 29. Kg2 {[%emt 0:01:40] Prevents Qh3+} Re1 {[%emt 0:00:16][%cal Oe1h1] ...Rh1! would be deadly.} 30. Rf3 {[%emt 0:01:36]} Qg4 {[%emt 0:00:18][%cal Oe1h1] White must now prevent ...Rh1!} 31. Rf4 {[%emt 0:00:30]} (31. Rd1 {feels hotter.} R1e2 32. Qb1 R8e3 33. Rxe3 Rxe3 34. Rd2) 31... Qd7 {[%emt 0:00:04]} 32. Rd1 {[%emt 0:01:01]} R1e2 {[%emt 0:00:13]} 33. Qb1 {[%emt 0:00:35]} Qe7 {[%emt 0:00:20]} (33... Qb7 $11) 34. Qa1 {[%emt 0:00:54]} Ra8 {[%emt 0:01:00]} 35. a4 {[%emt 0:00:17][%cal Ba2a4,Ba4a5][%mdl 32]} Rb8 {[%emt 0:00:20]} 36. a5 $36 {[%emt 0:00:41][%mdl 2048] White is really pushing.} Rxb3 {[%emt 0:00:24]} 37. a6 {[%emt 0:00:01]} Qa7 {[%emt 0:00:20]} 38. Rb1 {[%emt 0:01:43] Really sharp!} (38. Qf6 $16) 38... Rxb1 {[%emt 0:00:33]} 39. Qxb1 {[%emt 0:00:01] aiming for Qb5.} Qxa6 {[%emt 0:00:04][%mdl 12288] Endgame KQR-KQR. Loses the game.} (39... Qa8 $11) 40. Qb8+ {[%emt 0:00:02] ?ev?.} Kg7 {[%emt 0:00:03] [#]} 41. Qc7 $1 {[%emt 0:00:02]} ({Stronger than} 41. Qd8 Qb7 42. Qxd6 Rd2 43. Qf6+ (43. Qxc5 Qxd5+ 44. Qxd5 Rxd5 $11) 43... Kg8 44. Qd8+ Kh7 $11) 41... g5 {[%emt 0:02:00]} 42. Qxf7+ {[%emt 0:00:12]} Kh8 {[%emt 0:00:06]} 43. Qf8+ {[%emt 0:00:01]} Kh7 {[%emt 0:00:30]} 44. Rf7+ {[%emt 0:00:02]} Kg6 {[%emt 0:00:35]} 45. Qg7# {[%emt 0:01:55] Weighted Error Value: White=0.10 (very precise) /Black=0.24 (precise)} 1-0

[Event "Rapid Shavuot-A 2023"]
[Site "Ramat Gan"]
[Date "2023.05.25"]
[Round "4.15"]
[White "Azoulay, Yehonatan"]
[Black "Yaniv, Ori"]
[Result "0-1"]
[ECO "B53"]
[WhiteElo "1813"]
[BlackElo "2156"]
[Annotator "TA"]
[PlyCount "70"]
[EventDate "2023.05.19"]
[EventType "swiss"]
[EventCountry "ISR"]
[SourceTitle "playchess.com"]
[Source "ChessBase"]
[SourceQuality "1"]
[TimeControl "900+5"]

{[%evp 13,70,4,33,26,22,25,20,8,10,12,8,16,25,-8,-14,-8,-8,-26,-32,-37,-34,-31,-26,-30,-31,-25,-37,-54,-41,-95,-95,-168,-158,-170,-172,-178,-183,-175,-187,-177,-176,-171,-181,-301,-301,-365,-355,-342,-318,-658,-643,-707,-700,-744,-716,-5222,-5190,-1860,-1623]} 1. e4 {[%emt 0:00:04]} c5 {[%emt 0:00:02]} 2. Nf3 {[%emt 0:00:05]} d6 {[%emt 0:00:09]} 3. d4 {[%emt 0:00:00]} cxd4 {[%emt 0:00:05]} 4. Qxd4 {[%emt 0:00:03]} Nc6 {[%emt 0:00:07]} 5. Bb5 {[%emt 0:00:00]} Bd7 {[%emt 0:00:02]} 6. Bxc6 {[%emt 0:00:00]} Bxc6 {[%emt 0:00:13]} 7. Nc3 h6 {[%emt 0:00:05]} 8. Qd3 {[%emt 0:00:52] B53: Sicilian: 2...d6: Lines with Qxd4.} Nf6 {[%emt 0:01:03][%cal Bg8f6,Bf6d7,Bd7c5][%mdl 32]} 9. Nd4 {[%emt 0:00:22]} e6 {[%emt 0:00:33]} 10. f4 {[%emt 0:00:20] The position is equal.} d5 {[%emt 0:00:41][%cal Rd5e4]} 11. e5 {[%emt 0:00:24]} Nd7 {[%emt 0:00:20] [#]} 12. Be3 $146 {[%emt 0:00:38][%cal Od4e6]} ({Predecessor:} 12. O-O Bc5 13. Kh1 Qe7 14. Be3 O-O 15. Rae1 f6 16. exf6 Rxf6 17. Nxc6 bxc6 18. Bd4 Bxd4 19. Qxd4 {½-½ Farkas,R (2183)-Mester,A (2049) Budapest FS11 FM-A 2013 (6)}) 12... Bb4 {[%emt 0:00:13]} 13. Nxc6 {[%emt 0:00:49]} bxc6 {[%emt 0:00:04]} 14. O-O {[%emt 0:12:38]} O-O 15. a3 {[%emt 0:00:00]} Bc5 {[%emt 0:01:47][%cal Od5d4]} 16. Bxc5 {[%emt 0:00:00]} Nxc5 17. Qd4 Qb6 {[%emt 0:00:49]} 18. Rad1 {[%emt 0:00:00]} Nd7 {[%emt 0:00:07]} 19. Qxb6 {[%emt 0:00:00]} axb6 {[%emt 0:01:21]} 20. Rfe1 {[%emt 0:00:00]} Rfb8 {[%emt 0:00:45]} 21. g4 {[%emt 0:00:00]} ({White should play} 21. Ne4 $15) 21... b5 $17 {[%emt 0:00:07]} 22. Ne2 {[%emt 0:00:00]} (22. Na2 $17) 22... b4 $19 {[%emt 0:00:07]} 23. axb4 {[%emt 0:00:00]} Rxb4 {[%emt 0:00:01]} 24. b3 {[%emt 0:00:00]} Ra2 {[%emt 0:00:30]} 25. Rd4 {[%emt 0:00:00]} Rxd4 {[%emt 0:00:21]} 26. Nxd4 {[%emt 0:00:00][%mdl 4096] Endgame KRN-KRN} c5 {[%emt 0:00:00]} 27. Nb5 {[%emt 0:00:03]} Rxc2 {[%emt 0:00:06] White must now prevent ...c4.} 28. f5 {[%emt 0:00:02]} (28. Ra1 $142) 28... d4 {[%emt 0:00:16][%cal Bd5d4,Bd4d3,Bd3d2][%mdl 32]} 29. h4 {[%emt 0:00:54]} d3 {[%emt 0:00:06]} 30. Na3 {[%emt 0:00:06]} Rb2 {[%emt 0:00:17]} 31. g5 $2 {[%emt 0:00:11] [#]} (31. fxe6 fxe6 32. Nc4 Rxb3 33. Rc1) 31... Rxb3 {[%emt 0:00:18] Black is clearly winning.} 32. Nc4 {[%emt 0:00:02]} Rc3 {[%emt 0:00:21]} 33. Ne3 {[%emt 0:00:10]} Nxe5 {[%emt 0:00:06] ...d2 would be deadly.} 34. Kg2 {[%emt 0:00:05]} d2 {[%emt 0:00:07]} 35. Re2 {[%emt 0:00:02] [#]} Rxe3 $1 {[%emt 0:00:02] Weighted Error Value: White=0.55/Black=0.05 (flawless)} 0-1